[Event "EIWCC 2017"]
[Site "Riga"]
[Date "2017.04.14"]
[Round "4"]
[White "Ambartsumova, Karina"]
[Black "Nechaeva, Marina"]
[Result "1/2-1/2"]
[ECO "D02"]
[WhiteElo "2282"]
[BlackElo "2395"]
[Annotator "NA"]
[PlyCount "110"]
[EventDate "2017.??.??"]
[EventType "swiss"]
[EventCountry "LAT"]
[SourceTitle "playchess.com"]
[Source "ChessBase"]
[SourceQuality "1"]
[TimeControl "40/5400+30:1800+30"]

1. d4 {[%emt 0:00:00]} d5 {[%emt 0:00:05]} 2. Nf3 {[%emt 0:00:01]} Nf6 {[%emt 0:00:05]} 3. Bf4 {[%emt 0:00:39]} c5 {[%emt 0:00:07]} 4. e3 {[%emt 0:01:17]} Nc6 {[%emt 0:00:18]} 5. Nbd2 {[%emt 0:01:14]} Qb6 {[%emt 0:00:55]} 6. dxc5 {[%emt 0:00:50]} Qxb2 {[%emt 0:00:17]} 7. Rb1 {[%emt 0:01:14]} Qc3 {[%emt 0:04:30]} 8. Bb5 {[%emt 0:01:10]} Qxc5 {[%emt 0:02:08]} 9. O-O {[%emt 0:06:33]} a6 {[%emt 0:13:41]} 10. Be2 {[%emt 0:12:36]} e6 {[%emt 0:03:33]} 11. c4 {[%emt 0:17:38]} Be7 {[%emt 0:00:24]} 12. Nb3 {[%emt 0:22:54]} Qa3 {[%emt 0:14:16]} 13. Nbd4 {[%emt 0:03:25]} Nxd4 {[%emt 0:21:25]} 14. Qxd4 {[%emt 0:03:45]} O-O {[%emt 0:02:47]} 15. Be5 {[%emt 0:03:45]} dxc4 {[%emt 0:07:50]} 16. Bxc4 {[%emt 0:00:56]} b5 {[%emt 0:01:57]} 17. Bb3 {[%emt 0:00:36]} Bb7 {[%emt 0:01:48]} 18. Qf4 {[%emt 0:01:29]} Rfd8 {[%emt 0:04:56]} 19. Nd4 {[%emt 0:02:59]} Bd6 {[%emt 0:02:18]} 20. Rbd1 {[%emt 0:02:44]} Bxe5 {[%emt 0:01:02]} 21. Qxe5 {[%emt 0:00:05]} Bd5 {[%emt 0:02:19]} 22. Rc1 {[%emt 0:01:34]} Qd6 {[%emt 0:03:07]} 23. Qxd6 {[%emt 0:02:54]} Rxd6 {[%emt 0:00:04]} 24. Rc7 {[%emt 0:00:37]} g6 {[%emt 0:03:09]} 25. Rfc1 {[%emt 0:02:17]} Rad8 {[%emt 0:01:39]} 26. Nc6 {[%emt 0:05:35]} Bxc6 {[%emt 0:01:11]} 27. R7xc6 {[%emt 0:00:01]} Ne4 {[%emt 0:00:45]} 28. f3 {[%emt 0:01:17]} Nd2 {[%emt 0:00:20]} 29. Rxd6 {[%emt 0:00:45]} Rxd6 {[%emt 0:00:04]} 30. Rc8+ {[%emt 0:03:23]} Kg7 {[%emt 0:00:04]} 31. Kf2 {[%emt 0:00:07]} Nxb3 {[%emt 0:00:30]} 32. axb3 {[%emt 0:00:04]} Rd2+ {[%emt 0:00:07]} 33. Kg3 {[%emt 0:00:25]} Rd3 {[%emt 0:00:09]} 34. Ra8 {[%emt 0:00:51]} Rxe3 {[%emt 0:00:05]} 35. Rxa6 {[%emt 0:00:08]} Rxb3 {[%emt 0:00:03]} 36. h4 {[%emt 0:01:13]} h5 {[%emt 0:00:35]} 37. Rb6 {[%emt 0:00:03]} Kf6 {[%emt 0:00:08]} 38. Rb7 {[%emt 0:00:41]} Rb1 {[%emt 0:00:35]} 39. Kh2 {[%emt 0:01:00]} Rb3 {[%emt 0:04:11]} 40. Kg3 {[%emt 0:00:00]} e5 {[%emt 0:00:09]} 41. Kh2 {[%emt 0:00:22]} Ke6 {[%emt 0:00:12]} 42. Rb6+ {[%emt 0:00:52]} Kf5 {[%emt 0:01:58]} 43. Rb7 {[%emt 0:00:11]} f6 {[%emt 0:05:44]} 44. Rb6 {[%emt 0:00:20]} b4 {[%emt 0:01:11]} 45. g4+ {[%emt 0:00:26]} hxg4 {[%emt 0:00:08]} 46. fxg4+ {[%emt 0:00:02]} Kxg4 {[%emt 0:00:14]} 47. Rxf6 {[%emt 0:00:04]} Rb2+ {[%emt 0:01:24]} 48. Kg1 {[%emt 0:00:32]} Kh5 {[%emt 0:00:17]} 49. Re6 {[%emt 0:02:20]} b3 {[%emt 0:00:10]} 50. Rxe5+ {[%emt 0:02:19]} Kxh4 {[%emt 0:00:05]} 51. Rb5 {[%emt 0:03:07]} g5 {[%emt 0:00:09]} 52. Kf1 {[%emt 0:03:39]} g4 {[%emt 0:00:05]} 53. Rb8 {[%emt 0:00:12]} Kg3 {[%emt 0:00:10]} 54. Rb7 {[%emt 0:00:31]} Rb1+ {[%emt 0:00:04]} 55. Ke2 {[%emt 0:00:03]} b2 {[%emt 0:00:11]} 1/2-1/2

[Event "EIWCC 2017"]
[Site "Riga"]
[Date "2017.04.14"]
[Round "4"]
[White "Unuk, Laura"]
[Black "Papp, Petra"]
[Result "1/2-1/2"]
[ECO "D20"]
[WhiteElo "2275"]
[BlackElo "2378"]
[Annotator "NA"]
[PlyCount "74"]
[EventDate "2017.??.??"]
[EventType "swiss"]
[EventCountry "LAT"]
[SourceTitle "playchess.com"]
[Source "ChessBase"]
[SourceQuality "1"]
[TimeControl "40/5400+30:1800+30"]

1. d4 {[%emt 0:00:00]} d5 {[%emt 0:00:54]} 2. c4 {[%emt 0:00:00]} dxc4 {[%emt 0:00:24]} 3. e3 {[%emt 0:00:20]} e5 {[%emt 0:00:19]} 4. Bxc4 {[%emt 0:00:09]} exd4 {[%emt 0:00:08]} 5. exd4 {[%emt 0:00:42]} Bd6 {[%emt 0:00:26]} 6. Nf3 {[%emt 0:00:16]} Nf6 {[%emt 0:00:34]} 7. Qe2+ {[%emt 0:00:34]} Qe7 {[%emt 0:00:26]} 8. Qxe7+ {[%emt 0:00:30]} Bxe7 {[%emt 0:00:16]} 9. O-O {[%emt 0:00:29]} Nbd7 {[%emt 0:00:38]} 10. Nc3 {[%emt 0:01:19]} Nb6 {[%emt 0:01:48]} 11. Bb3 {[%emt 0:00:11]} c6 {[%emt 0:00:57]} 12. Re1 {[%emt 0:04:08]} Nfd5 {[%emt 0:00:49]} 13. a3 {[%emt 0:06:18]} Be6 {[%emt 0:02:13]} 14. Bg5 {[%emt 0:00:39]} h6 {[%emt 0:17:44]} 15. Bxe7 {[%emt 0:00:35]} Kxe7 {[%emt 0:00:08]} 16. Ne4 {[%emt 0:00:34]} Nd7 {[%emt 0:05:01]} 17. Nc5 {[%emt 0:10:42]} Nxc5 {[%emt 0:06:09]} 18. dxc5 {[%emt 0:00:37]} Kf6 {[%emt 0:02:22]} 19. Rad1 {[%emt 0:08:48]} Rad8 {[%emt 0:03:00]} 20. Rd4 {[%emt 0:02:33]} g5 {[%emt 0:06:22]} 21. h4 {[%emt 0:12:35]} Nf4 {[%emt 0:02:57]} 22. Bxe6 {[%emt 0:12:44]} Nxe6 {[%emt 0:01:52]} 23. Rg4 {[%emt 0:00:22]} Rd5 {[%emt 0:02:59]} 24. b4 {[%emt 0:00:25]} Rhd8 {[%emt 0:01:38]} 25. Rge4 {[%emt 0:06:24]} Rd3 {[%emt 0:05:23]} 26. a4 {[%emt 0:02:30]} a5 {[%emt 0:02:55]} 27. bxa5 {[%emt 0:12:48]} Nxc5 {[%emt 0:02:13]} 28. Rc4 {[%emt 0:00:03]} R8d5 {[%emt 0:02:12]} 29. Re8 {[%emt 0:03:25]} Ra3 {[%emt 0:05:38]} 30. Rb8 {[%emt 0:01:40]} Rxa4 {[%emt 0:03:11]} 31. Rxa4 {[%emt 0:00:31]} Nxa4 {[%emt 0:00:06]} 32. Rxb7 {[%emt 0:00:24]} Rxa5 {[%emt 0:00:29]} 33. Nd4 {[%emt 0:03:02]} Rc5 {[%emt 0:06:52]} 34. Ra7 {[%emt 0:00:50]} Rc1+ {[%emt 0:06:02]} 35. Kh2 {[%emt 0:00:07]} Nb2 {[%emt 0:08:02]} 36. Ra6 {[%emt 0:01:29]} Nd3 {[%emt 0:00:09]} 37. Nxc6 {[%emt 0:02:55]} Nxf2 {[%emt 0:01:14]} 1/2-1/2

[Event "EIWCC 2017"]
[Site "Riga"]
[Date "2017.04.14"]
[Round "4"]
[White "Mamedjarova, Turkan"]
[Black "Arda, Cagil Irmak"]
[Result "0-1"]
[ECO "E12"]
[WhiteElo "2267"]
[BlackElo "2089"]
[Annotator "NA"]
[PlyCount "88"]
[EventDate "2017.??.??"]
[EventType "swiss"]
[EventCountry "LAT"]
[SourceTitle "playchess.com"]
[Source "ChessBase"]
[SourceQuality "1"]
[TimeControl "40/5400+30:1800+30"]

1. d4 {[%emt 0:00:00]} Nf6 {[%emt 0:00:41]} 2. Nf3 {[%emt 0:00:00]} e6 {[%emt 0:00:13]} 3. c4 {[%emt 0:00:07]} b6 {[%emt 0:00:14]} 4. Qc2 {[%emt 0:02:58]} Bb7 {[%emt 0:00:28]} 5. Nc3 {[%emt 0:00:09]} Bb4 {[%emt 0:00:22]} 6. Nd2 {[%emt 0:03:19]} c5 {[%emt 0:05:30]} 7. a3 {[%emt 0:02:29]} Ba5 {[%emt 0:02:57]} 8. dxc5 {[%emt 0:12:55]} bxc5 {[%emt 0:03:25]} 9. Rb1 {[%emt 0:00:44]} Nc6 {[%emt 0:06:55]} 10. e3 {[%emt 0:03:17]} O-O {[%emt 0:01:40]} 11. Nb3 {[%emt 0:03:57]} Bb6 {[%emt 0:06:09]} 12. Be2 {[%emt 0:04:25]} Rc8 {[%emt 0:07:17]} 13. O-O {[%emt 0:01:16]} Qe7 {[%emt 0:00:54]} 14. Na4 {[%emt 0:18:26]} Ne5 {[%emt 0:13:18]} 15. Nxb6 {[%emt 0:03:45]} axb6 {[%emt 0:00:23]} 16. Nd2 {[%emt 0:03:00]} d5 {[%emt 0:05:20]} 17. b3 {[%emt 0:09:13]} Rfd8 {[%emt 0:05:10]} 18. Re1 {[%emt 0:05:57]} Qd6 {[%emt 0:03:13]} 19. h3 {[%emt 0:04:47]} d4 {[%emt 0:08:47]} 20. exd4 {[%emt 0:03:34]} cxd4 {[%emt 0:05:41]} 21. Bd3 {[%emt 0:02:42]} Nxd3 {[%emt 0:00:48]} 22. Qxd3 {[%emt 0:01:06]} e5 {[%emt 0:01:40]} 23. f3 {[%emt 0:00:19]} Re8 {[%emt 0:00:50]} 24. Ne4 {[%emt 0:03:48]} Nxe4 {[%emt 0:01:42]} 25. fxe4 {[%emt 0:00:04]} f5 {[%emt 0:03:40]} 26. exf5 {[%emt 0:00:07]} e4 {[%emt 0:00:31]} 27. Qf1 {[%emt 0:02:32]} e3 {[%emt 0:00:51]} 28. Rb2 {[%emt 0:00:36]} Rc5 {[%emt 0:02:16]} 29. Rd1 {[%emt 0:00:16]} Rce5 {[%emt 0:03:28]} 30. Qf4 {[%emt 0:01:10]} Qc6 {[%emt 0:05:21]} 31. Re2 {[%emt 0:00:10]} Re4 {[%emt 0:01:44]} 32. Qg5 {[%emt 0:02:02]} Qf6 {[%emt 0:00:59]} 33. Qxf6 {[%emt 0:02:11]} gxf6 {[%emt 0:00:03]} 34. Bb2 {[%emt 0:00:05]} Rd8 {[%emt 0:00:22]} 35. Rd3 {[%emt 0:00:27]} Bc8 {[%emt 0:00:47]} 36. g4 {[%emt 0:00:07]} h5 {[%emt 0:01:48]} 37. Kh2 {[%emt 0:02:03]} Kf7 {[%emt 0:01:15]} 38. Kg3 {[%emt 0:03:14]} hxg4 {[%emt 0:00:25]} 39. hxg4 {[%emt 0:00:57]} Rg8 {[%emt 0:00:11]} 40. g5 {[%emt 0:00:00]} Rxg5+ {[%emt 0:00:17]} 41. Kf3 {[%emt 0:00:10]} Bb7 {[%emt 0:05:13]} 42. Bxd4 {[%emt 0:01:09]} Rxf5+ {[%emt 0:02:34]} 43. Kg3 {[%emt 0:00:01]} Rg5+ {[%emt 0:00:07]} 44. Kh3 {[%emt 0:00:17]} Bc8+ {[%emt 0:00:06]} 0-1

[Event "EIWCC 2017"]
[Site "Riga"]
[Date "2017.04.14"]
[Round "4"]
[White "Sandu, Mihaela"]
[Black "Kovanova, Baira"]
[Result "1/2-1/2"]
[ECO "C55"]
[WhiteElo "2261"]
[BlackElo "2376"]
[Annotator "NA"]
[PlyCount "114"]
[EventDate "2017.??.??"]
[EventType "swiss"]
[EventCountry "LAT"]
[SourceTitle "playchess.com"]
[Source "ChessBase"]
[SourceQuality "1"]
[TimeControl "40/5400+30:1800+30"]

1. e4 {[%emt 0:00:00]} e5 {[%emt 0:00:03]} 2. Nf3 {[%emt 0:00:00]} Nc6 {[%emt 0:00:04]} 3. Bc4 {[%emt 0:00:00]} Nf6 {[%emt 0:00:04]} 4. d3 {[%emt 0:00:00]} Be7 {[%emt 0:00:10]} 5. Bb3 {[%emt 0:00:04]} O-O {[%emt 0:00:10]} 6. O-O {[%emt 0:00:05]} d6 {[%emt 0:00:03]} 7. c3 {[%emt 0:00:11]} Na5 {[%emt 0:00:12]} 8. Bc2 {[%emt 0:00:07]} c5 {[%emt 0:00:07]} 9. Nbd2 {[%emt 0:01:20]} Nc6 {[%emt 0:00:11]} 10. Re1 {[%emt 0:00:32]} Re8 {[%emt 0:00:05]} 11. Nf1 {[%emt 0:00:23]} h6 {[%emt 0:00:05]} 12. Ne3 {[%emt 0:04:26]} Be6 {[%emt 0:03:05]} 13. h3 {[%emt 0:00:51]} Bf8 {[%emt 0:01:15]} 14. Nh2 {[%emt 0:01:34]} d5 {[%emt 0:07:26]} 15. Qf3 {[%emt 0:01:19]} d4 {[%emt 0:01:00]} 16. Nf5 {[%emt 0:03:23]} Kh7 {[%emt 0:03:32]} 17. g4 {[%emt 0:19:46]} g6 {[%emt 0:12:19]} 18. Ng3 {[%emt 0:01:01]} Ng8 {[%emt 0:02:35]} 19. Bb3 {[%emt 0:00:49]} Bxb3 {[%emt 0:13:17]} 20. axb3 {[%emt 0:00:05]} Qf6 {[%emt 0:00:43]} 21. Qd1 {[%emt 0:04:18]} Qe6 {[%emt 0:06:20]} 22. Rf1 {[%emt 0:08:16]} Bg7 {[%emt 0:02:39]} 23. c4 {[%emt 0:03:33]} Nge7 {[%emt 0:01:18]} 24. Qf3 {[%emt 0:01:48]} Rf8 {[%emt 0:01:47]} 25. Bd2 {[%emt 0:01:02]} a5 {[%emt 0:04:22]} 26. Kg2 {[%emt 0:05:52]} b6 {[%emt 0:01:21]} 27. Qe2 {[%emt 0:03:02]} Rae8 {[%emt 0:03:37]} 28. Nf3 {[%emt 0:02:50]} Qd6 {[%emt 0:10:15]} 29. Ng1 {[%emt 0:08:16]} Nd8 {[%emt 0:05:33]} 30. Qf3 {[%emt 0:02:37]} Ne6 {[%emt 0:06:12]} 31. N1e2 {[%emt 0:02:50]} Qc6 {[%emt 0:03:44]} 32. Ng1 {[%emt 0:03:12]} Bf6 {[%emt 0:02:00]} 33. Qd1 {[%emt 0:03:34]} Bg5 {[%emt 0:01:29]} 34. Nf3 {[%emt 0:09:25]} Bxd2 {[%emt 0:01:44]} 35. Qxd2 {[%emt 0:00:07]} Nf4+ {[%emt 0:00:03]} 36. Kh2 {[%emt 0:00:05]} Qf6 {[%emt 0:00:37]} 37. Ng1 {[%emt 0:03:37]} Nc6 {[%emt 0:02:47]} 38. N3e2 {[%emt 0:01:05]} Kg7 {[%emt 0:02:03]} 39. Nxf4 {[%emt 0:01:03]} exf4 {[%emt 0:00:31]} 40. Nf3 {[%emt 0:00:00]} Ne5 {[%emt 0:04:56]} 41. Nxe5 {[%emt 0:15:40]} Rxe5 {[%emt 0:03:07]} 42. f3 {[%emt 0:00:04]} h5 {[%emt 0:01:09]} 43. Kg2 {[%emt 0:01:13]} Rh8 {[%emt 0:04:50]} 44. Rh1 {[%emt 0:00:05]} Ree8 {[%emt 0:01:24]} 45. Rag1 {[%emt 0:04:10]} g5 {[%emt 0:13:52]} 46. Kf1 {[%emt 0:03:23]} h4 {[%emt 0:02:56]} 47. Kf2 {[%emt 0:00:34]} Qc6 {[%emt 0:00:33]} 48. Ra1 {[%emt 0:00:22]} Ra8 {[%emt 0:00:53]} 49. Ra2 {[%emt 0:05:03]} Rhe8 {[%emt 0:00:31]} 50. Rha1 {[%emt 0:00:24]} Rab8 {[%emt 0:02:05]} 51. Ke1 {[%emt 0:00:48]} Rb7 {[%emt 0:00:14]} 52. Kd1 {[%emt 0:00:31]} Reb8 {[%emt 0:00:17]} 53. Rc1 {[%emt 0:08:27]} Ra8 {[%emt 0:01:57]} 54. Rca1 {[%emt 0:00:18]} Rba7 {[%emt 0:00:48]} 55. Kc1 {[%emt 0:01:35]} Qb7 {[%emt 0:00:43]} 56. Kd1 {[%emt 0:00:58]} Qa6 {[%emt 0:00:44]} 57. Qc2 {[%emt 0:00:46]} Qb7 {[%emt 0:00:33]} 1/2-1/2

[Event "EIWCC 2017"]
[Site "Riga"]
[Date "2017.04.14"]
[Round "4"]
[White "Kazarian, Anna-Maja"]
[Black "Azimova, Karina"]
[Result "1-0"]
[ECO "B04"]
[WhiteElo "2257"]
[BlackElo "2072"]
[Annotator "NA"]
[PlyCount "59"]
[EventDate "2017.??.??"]
[EventType "swiss"]
[EventCountry "LAT"]
[SourceTitle "playchess.com"]
[Source "ChessBase"]
[SourceQuality "1"]
[TimeControl "40/5400+30:1800+30"]

1. e4 {[%emt 0:00:00]} Nf6 {[%emt 0:00:06]} 2. e5 {[%emt 0:00:00]} Nd5 {[%emt 0:00:05]} 3. d4 {[%emt 0:00:00]} d6 {[%emt 0:00:03]} 4. Nf3 {[%emt 0:00:00]} Nc6 {[%emt 0:00:05]} 5. Bc4 {[%emt 0:08:33]} Nb6 {[%emt 0:00:58]} 6. Bb3 {[%emt 0:01:37]} dxe5 {[%emt 0:02:45]} 7. Nxe5 {[%emt 0:00:24]} Nxe5 {[%emt 0:00:15]} 8. dxe5 {[%emt 0:00:05]} Qxd1+ {[%emt 0:00:17]} 9. Kxd1 {[%emt 0:00:06]} Bf5 {[%emt 0:02:29]} 10. Be3 {[%emt 0:03:25]} O-O-O+ {[%emt 0:00:55]} 11. Ke2 {[%emt 0:03:16]} e6 {[%emt 0:04:38]} 12. Nc3 {[%emt 0:10:08]} Bb4 {[%emt 0:09:23]} 13. Nb5 {[%emt 0:06:01]} a6 {[%emt 0:05:16]} 14. Nd4 {[%emt 0:02:45]} Bg6 {[%emt 0:02:01]} 15. Rad1 {[%emt 0:10:11]} Bh5+ {[%emt 0:08:12]} 16. f3 {[%emt 0:01:11]} c5 {[%emt 0:05:42]} 17. Nxe6 {[%emt 0:04:21]} fxe6 {[%emt 0:05:35]} 18. Bxe6+ {[%emt 0:00:18]} Nd7 {[%emt 0:01:44]} 19. c3 {[%emt 0:10:28]} Ba5 {[%emt 0:01:03]} 20. Bg5 {[%emt 0:17:44]} Be8 {[%emt 0:08:58]} 21. Rd5 {[%emt 0:00:56]} Rf8 {[%emt 0:20:34]} 22. Bxd8 {[%emt 0:00:57]} Bxd8 {[%emt 0:02:27]} 23. Rhd1 {[%emt 0:00:08]} Bf7 {[%emt 0:01:55]} 24. Bxd7+ {[%emt 0:03:03]} Kb8 {[%emt 0:00:01]} 25. Be6 {[%emt 0:01:20]} Bxe6 {[%emt 0:02:09]} 26. Rxd8+ {[%emt 0:00:07]} Rxd8 {[%emt 0:00:04]} 27. Rxd8+ {[%emt 0:00:05]} Kc7 {[%emt 0:00:03]} 28. Rh8 {[%emt 0:00:33]} Bf5 {[%emt 0:01:01]} 29. Rg8 {[%emt 0:00:20]} g6 {[%emt 0:00:38]} 30. Rg7+ {[%emt 0:00:29]} 1-0

[Event "EIWCC 2017"]
[Site "Riga"]
[Date "2017.04.14"]
[Round "4"]
[White "Ivanenko, Olga I"]
[Black "Szczepkowska, Karina"]
[Result "1/2-1/2"]
[ECO "C33"]
[WhiteElo "2252"]
[BlackElo "2414"]
[Annotator "NA"]
[PlyCount "79"]
[EventDate "2017.??.??"]
[EventType "swiss"]
[EventCountry "LAT"]
[SourceTitle "playchess.com"]
[Source "ChessBase"]
[SourceQuality "1"]
[TimeControl "40/5400+30:1800+30"]

1. e4 e5 2. f4 exf4 3. Bc4 Qh4+ 4. Kf1 d6 5. Nf3 Qh6 6. Nc3 c6 7. d3 Bg4 8. h3 Nd7 9. Kg1 Bxf3 10. Qxf3 g5 11. d4 Qg7 12. Ne2 Ne7 {[%emt 1:36:30]} 13. h4 h6 14. hxg5 hxg5 15. Rxh8 Qxh8 16. g3 Qh3 17. Qg2 Qh5 18. gxf4 Nb6 $14 19. Bd3 gxf4 20. Bxf4 O-O-O 21. Kf2 Ng6 22. Bg5 Be7 23. Bxe7 Nxe7 24. Rh1 Qa5 25. Rh7 Rg8 26. Qh3+ Kb8 27. Rxf7 Nbc8 28. Qh4 Qd8 29. Ke1 Rh8 30. Rh7 Qa5+ 31. Nc3 Ng6 32. Qh6 Rxh7 33. Qxh7 Qg5 {[%emt 0:10:30]} 34. Ne2 Nh4 35. Qf7 Qg2 36. Kd2 Nf3+ 37. Ke3 Nh2 38. Kd2 Nf3+ 39. Ke3 Nh2 40. Kd2 1/2-1/2

[Event "EIWCC 2017"]
[Site "Riga"]
[Date "2017.04.14"]
[Round "4"]
[White "Mammadova, Narmin"]
[Black "Kouvatsou, Maria"]
[Result "1-0"]
[ECO "C47"]
[WhiteElo "2240"]
[BlackElo "2016"]
[Annotator "NA"]
[PlyCount "79"]
[EventDate "2017.??.??"]
[EventType "swiss"]
[EventCountry "LAT"]
[SourceTitle "playchess.com"]
[Source "ChessBase"]
[SourceQuality "1"]
[TimeControl "40/5400+30:1800+30"]

1. e4 {[%emt 0:00:00]} e5 {[%emt 0:00:15]} 2. Nc3 {[%emt 0:00:00]} Nc6 {[%emt 0:02:10]} 3. Nf3 {[%emt 0:00:01]} Nf6 {[%emt 0:01:05]} 4. h3 {[%emt 0:00:39]} d5 {[%emt 0:00:19]} 5. exd5 {[%emt 0:00:17]} Nxd5 {[%emt 0:00:08]} 6. Bb5 {[%emt 0:00:30]} Nxc3 {[%emt 0:00:56]} 7. bxc3 {[%emt 0:00:03]} Bd6 {[%emt 0:00:16]} 8. d4 {[%emt 0:00:12]} exd4 {[%emt 0:00:58]} 9. cxd4 {[%emt 0:00:31]} O-O {[%emt 0:00:33]} 10. O-O {[%emt 0:00:05]} h6 {[%emt 0:01:01]} 11. c3 {[%emt 0:02:15]} Bf5 {[%emt 0:00:55]} 12. Bd3 {[%emt 0:01:13]} Qf6 {[%emt 0:00:43]} 13. Rb1 {[%emt 0:05:14]} b6 {[%emt 0:00:31]} 14. Rb5 {[%emt 0:03:14]} Bxd3 {[%emt 0:00:31]} 15. Qxd3 {[%emt 0:00:05]} Rae8 {[%emt 0:00:19]} 16. c4 {[%emt 0:19:20]} a6 {[%emt 0:03:17]} 17. Rb3 {[%emt 0:11:06]} Re7 {[%emt 0:02:43]} 18. c5 {[%emt 0:06:05]} bxc5 {[%emt 0:21:29]} 19. dxc5 {[%emt 0:00:18]} Bxc5 {[%emt 0:01:12]} 20. Bb2 {[%emt 0:01:29]} Qd6 {[%emt 0:04:35]} 21. Qc3 {[%emt 0:02:19]} f5 {[%emt 0:04:53]} 22. Qc4+ {[%emt 0:06:09]} Kh7 {[%emt 0:00:21]} 23. Rc3 {[%emt 0:11:28]} Nd4 {[%emt 0:11:30]} 24. Qxc5 {[%emt 0:01:45]} Ne2+ {[%emt 0:00:13]} 25. Kh1 {[%emt 0:00:06]} Nxc3 {[%emt 0:00:40]} 26. Qxc3 {[%emt 0:00:08]} c5 {[%emt 0:07:59]} 27. Rc1 {[%emt 0:04:54]} Rc8 {[%emt 0:00:27]} 28. Qc2 {[%emt 0:02:29]} Qd5 {[%emt 0:03:19]} 29. Rd1 {[%emt 0:05:40]} Qe4 {[%emt 0:04:28]} 30. Qc3 {[%emt 0:01:56]} Rcc7 {[%emt 0:09:25]} 31. Ba3 {[%emt 0:10:49]} Qe2 {[%emt 0:03:23]} 32. Rd2 {[%emt 0:00:57]} Qf1+ {[%emt 0:08:43]} 33. Kh2 {[%emt 0:00:00]} Re4 {[%emt 0:02:29]} 34. Qa5 {[%emt 0:04:15]} Rc6 {[%emt 0:02:11]} 35. Bxc5 {[%emt 0:01:07]} Rc4 {[%emt 0:00:59]} 36. Ba3 {[%emt 0:00:36]} Rg6 {[%emt 0:00:16]} 37. g3 {[%emt 0:00:20]} f4 {[%emt 0:02:19]} 38. Qf5 {[%emt 0:00:10]} fxg3+ {[%emt 0:00:19]} 39. fxg3 {[%emt 0:00:02]} Qa1 {[%emt 0:01:03]} 40. Ne5 {[%emt 0:00:00]} 1-0

[Event "EIWCC 2017"]
[Site "Riga"]
[Date "2017.04.14"]
[Round "4"]
[White "Kantane, Anna"]
[Black "Narva, Regina"]
[Result "1-0"]
[ECO "B01"]
[WhiteElo "2230"]
[BlackElo "2000"]
[Annotator "NA"]
[PlyCount "85"]
[EventDate "2017.??.??"]
[EventType "swiss"]
[EventCountry "LAT"]
[SourceTitle "playchess.com"]
[Source "ChessBase"]
[SourceQuality "1"]
[TimeControl "40/5400+30:1800+30"]

1. e4 {[%emt 0:00:00]} d5 {[%emt 0:00:27]} 2. exd5 {[%emt 0:00:00]} Nf6 {[%emt 0:00:05]} 3. d4 {[%emt 0:01:30]} Bg4 {[%emt 0:01:37]} 4. f3 {[%emt 0:05:42]} Bf5 {[%emt 0:00:33]} 5. Bb5+ {[%emt 0:06:23]} Nbd7 {[%emt 0:11:35]} 6. c4 {[%emt 0:16:14]} e6 {[%emt 0:04:21]} 7. dxe6 {[%emt 0:00:16]} fxe6 {[%emt 0:02:35]} 8. Ne2 {[%emt 0:08:57]} c6 {[%emt 0:03:10]} 9. Ba4 {[%emt 0:00:09]} Bd6 {[%emt 0:00:56]} 10. c5 {[%emt 0:07:48]} Bc7 {[%emt 0:02:51]} 11. O-O {[%emt 0:02:57]} Nd5 {[%emt 0:03:11]} 12. Nbc3 {[%emt 0:03:26]} O-O {[%emt 0:17:13]} 13. Bb3 {[%emt 0:13:41]} Qh4 {[%emt 0:06:48]} 14. g3 {[%emt 0:01:10]} Qf6 {[%emt 0:03:49]} 15. Ne4 {[%emt 0:07:32]} Qg6 {[%emt 0:01:15]} 16. Nd6 {[%emt 0:05:07]} Bxd6 {[%emt 0:09:20]} 17. cxd6 {[%emt 0:00:07]} Bd3 {[%emt 0:00:49]} 18. Rf2 {[%emt 0:04:27]} N7b6 {[%emt 0:04:35]} 19. Kh1 {[%emt 0:02:20]} Rad8 {[%emt 0:05:55]} 20. Nf4 {[%emt 0:03:12]} Nxf4 {[%emt 0:03:44]} 21. Bxf4 {[%emt 0:00:03]} Nc8 {[%emt 0:03:55]} 22. Qe1 {[%emt 0:05:24]} Rfe8 {[%emt 0:00:35]} 23. Qb4 {[%emt 0:00:26]} Rd7 {[%emt 0:01:28]} 24. Re1 {[%emt 0:00:32]} Nb6 {[%emt 0:05:29]} 25. Qc3 {[%emt 0:01:39]} h5 {[%emt 0:01:27]} 26. Rxe6 {[%emt 0:02:34]} Rxe6 {[%emt 0:01:14]} 27. Bxe6+ {[%emt 0:00:02]} Qxe6 {[%emt 0:00:07]} 28. Qxd3 {[%emt 0:00:06]} Nd5 {[%emt 0:00:59]} 29. Be5 {[%emt 0:00:19]} Rf7 {[%emt 0:00:34]} 30. Qe4 {[%emt 0:01:11]} Qh6 {[%emt 0:00:51]} 31. f4 {[%emt 0:01:15]} h4 {[%emt 0:00:15]} 32. g4 {[%emt 0:00:43]} h3 {[%emt 0:00:33]} 33. Qf3 {[%emt 0:00:40]} Qh4 {[%emt 0:02:39]} 34. Qg3 {[%emt 0:00:28]} Qh7 {[%emt 0:00:16]} 35. f5 {[%emt 0:00:34]} Qh6 {[%emt 0:00:41]} 36. g5 {[%emt 0:00:25]} Qh5 {[%emt 0:00:10]} 37. Rf3 {[%emt 0:00:32]} c5 {[%emt 0:00:50]} 38. dxc5 {[%emt 0:00:33]} a6 {[%emt 0:00:21]} 39. Kg1 {[%emt 0:00:27]} a5 {[%emt 0:02:10]} 40. Kf2 {[%emt 0:00:00]} Rd7 {[%emt 0:00:19]} 41. f6 {[%emt 0:04:36]} Qg6 {[%emt 0:02:16]} 42. Qxh3 {[%emt 0:02:03]} Qe8 {[%emt 0:01:46]} 43. fxg7 {[%emt 0:03:02]} 1-0

[Event "EIWCC 2017"]
[Site "Riga"]
[Date "2017.04.14"]
[Round "4"]
[White "Balaian, Alina"]
[Black "Tsolakidou, Stavroula"]
[Result "0-1"]
[ECO "B51"]
[WhiteElo "2229"]
[BlackElo "2395"]
[Annotator "NA"]
[PlyCount "64"]
[EventDate "2017.??.??"]
[EventType "swiss"]
[EventCountry "LAT"]
[SourceTitle "playchess.com"]
[Source "ChessBase"]
[SourceQuality "1"]
[TimeControl "40/5400+30:1800+30"]

1. e4 {[%emt 0:00:00]} c5 {[%emt 0:00:05]} 2. Nf3 {[%emt 0:00:00]} d6 {[%emt 0:00:07]} 3. Bb5+ {[%emt 0:00:04]} Nd7 {[%emt 0:00:11]} 4. c3 {[%emt 0:00:22]} Ngf6 {[%emt 0:04:56]} 5. Qe2 {[%emt 0:00:23]} a6 {[%emt 0:00:10]} 6. Ba4 {[%emt 0:00:06]} g6 {[%emt 0:00:33]} 7. O-O {[%emt 0:00:39]} b5 {[%emt 0:00:16]} 8. Bc2 {[%emt 0:00:12]} Bg7 {[%emt 0:00:20]} 9. d4 {[%emt 0:00:28]} cxd4 {[%emt 0:00:12]} 10. cxd4 {[%emt 0:00:05]} Bb7 {[%emt 0:05:19]} 11. e5 {[%emt 0:05:28]} Bxf3 {[%emt 0:04:25]} 12. gxf3 {[%emt 0:01:07]} Nd5 {[%emt 0:04:31]} 13. exd6 {[%emt 0:21:25]} e6 {[%emt 0:14:58]} 14. Nc3 {[%emt 0:02:11]} N7b6 {[%emt 0:02:15]} 15. a4 {[%emt 0:04:31]} b4 {[%emt 0:05:54]} 16. a5 {[%emt 0:01:43]} bxc3 {[%emt 0:06:05]} 17. axb6 {[%emt 0:00:06]} O-O {[%emt 0:16:27]} 18. b7 {[%emt 0:07:28]} Ra7 {[%emt 0:04:14]} 19. Rxa6 {[%emt 0:02:38]} cxb2 {[%emt 0:02:21]} 20. Bd2 {[%emt 0:13:07]} Rxb7 {[%emt 0:01:29]} 21. Qc4 {[%emt 0:10:59]} Rb6 {[%emt 0:07:26]} 22. Ra2 {[%emt 0:01:46]} Qxd6 {[%emt 0:02:13]} 23. Bb3 {[%emt 0:01:04]} Rfb8 {[%emt 0:05:31]} 24. Rxb2 {[%emt 0:00:29]} Ne7 {[%emt 0:00:30]} 25. Rbb1 {[%emt 0:06:04]} Nf5 {[%emt 0:04:57]} 26. Rfd1 {[%emt 0:08:15]} Nxd4 {[%emt 0:03:32]} 27. Be3 {[%emt 0:04:41]} Rb4 {[%emt 0:00:42]} 28. Qf1 {[%emt 0:01:13]} Nxf3+ {[%emt 0:01:44]} 29. Kg2 {[%emt 0:00:06]} Qc6 {[%emt 0:00:47]} 30. Bc4 {[%emt 0:04:46]} Rxb1 {[%emt 0:01:25]} 31. Rxb1 {[%emt 0:00:19]} Rxb1 {[%emt 0:00:06]} 32. Qxb1 {[%emt 0:00:19]} Nd2+ {[%emt 0:00:07]} 0-1